bitfinex-derivatives/quotes_BTCF0:USTF0_20251118
["timestamp","ask_amount","ask_price","bid_price","bid_amount"]
[1763490633894,0.5111582,93335.0,93334.0,3e-08]
[1763490634099,0.1503801,93316.0,93315.0,0.04521]
[1763490635392,0.1503801,93316.0,93315.0,0.02229]
[1763490635593,0.1503801,93316.0,93315.0,0.04521]
[1763490635898,0.1503801,93316.0,93315.0,0.04621]
[1763490636300,0.1292501,93316.0,93315.0,0.04621]
[1763490636501,0.1503801,93316.0,93315.0,0.04621]
[1763490636701,0.1503801,93316.0,93315.0,0.04721]
[1763490637898,0.1503801,93316.0,93315.0,0.002]
[1763490638100,0.1503904,93307.0,93306.0,0.00016073]
[1763490638397,0.7698304,93307.0,93306.0,0.00016073]
[1763490642698,0.66259,93307.0,93306.0,0.04537073]
[1763490642899,0.00219803,93310.0,93309.0,0.04521]
[1763490643101,0.36096073,93325.0,93309.0,0.04521]
[1763490643102,0.51133083,93325.0,93324.0,0.04521]
[1763490643300,0.76997083,93325.0,93324.0,0.04521]
[1763490643501,0.04331073,93325.0,93324.0,0.04521]
[1763490644001,0.1503807,93316.0,93315.0,0.04521]
[1763490644602,0.04315,93316.0,93315.0,0.04521]
[1763490644910,0.150387,93310.0,93309.0,0.40601]
[1763490645099,0.15258503,93310.0,93309.0,0.40601]
[1763490645297,0.00219803,93310.0,93309.0,0.40601]
[1763490645705,0.1072274,93319.0,93309.0,0.40601]
[1763490645706,0.04315,93320.0,93319.0,0.1524366]
[1763490645904,0.1072266,93319.0,93318.0,0.04521]
[1763490646105,0.1292466,93319.0,93318.0,0.04521]
[1763490646306,0.1503766,93319.0,93318.0,0.04521]
[1763490646602,0.1503766,93319.0,93318.0,0.40601]
[1763490646603,0.04315,93319.0,93318.0,0.40601]
[1763490647209,0.00219803,93320.0,93319.0,0.1524366]
[1763490647397,0.12940043,93325.0,93324.0,0.04521]
[1763490647703,0.15053043,93325.0,93324.0,0.04521]
[1763490648907,0.04331073,93325.0,93324.0,0.04521]
[1763490649699,0.1503766,93319.0,93318.0,0.40601]
[1763490651409,0.1503766,93319.0,93318.0,0.3608]
[1763490651608,0.1503766,93319.0,93318.0,0.40601]
[1763490652603,0.1513766,93319.0,93318.0,0.40601]
[1763490653209,0.001,93319.0,93318.0,0.40601]
[1763490653412,0.04415,93319.0,93318.0,0.40601]
[1763490653610,0.02302,93319.0,93318.0,0.40601]
[1763490654409,0.02202,93319.0,93318.0,0.40601]
[1763490655409,0.00219803,93320.0,93319.0,0.1524366]
[1763490655709,0.02421803,93320.0,93319.0,0.1524366]
[1763490656012,0.04534803,93320.0,93319.0,0.04521]
[1763490659914,0.04534803,93320.0,93306.0,0.05790785]
[1763490659915,0.04589,93307.0,93306.0,0.15124233]
[1763490661208,0.04589,93307.0,93306.0,0.04400073]
[1763490661409,0.04589,93307.0,93306.0,0.00016073]
[1763490661713,0.40669,93307.0,93306.0,0.00016073]
[1763490661916,0.66533,93307.0,93306.0,0.00016073]
[1763490662120,0.68923399,93307.0,93306.0,0.04400073]
[1763490662508,0.68923399,93307.0,93306.0,0.00016073]
[1763490664625,0.68923399,93307.0,93306.0,0.02207073]
[1763490665120,0.30453,93307.0,93306.0,0.04400073]
[1763490666511,0.00219803,93310.0,93309.0,0.04384]
[1763490666711,0.04808803,93310.0,93309.0,0.04384]
[1763490666911,0.04589,93307.0,93306.0,0.00016073]
[1763490669524,0.04589,93307.0,93306.0,0.04400073]
[1763490670618,0.04589,93307.0,93306.0,0.00016073]
[1763490670926,0.04589,93307.0,93306.0,0.04400073]
[1763490671127,0.04589,93307.0,93306.0,0.00016073]
[1763490671523,0.04589,93293.0,93292.0,0.05774712]
[1763490671723,0.1531522,93288.0,93287.0,0.04384]
[1763490672432,0.00219803,93290.0,93289.0,0.04384]
[1763490672628,0.26814807,93300.0,93299.0,0.1510896]
[1763490672928,0.15533713,93300.0,93299.0,0.04384]
[1763490673118,0.15533713,93300.0,93299.0,0.02191]
[1763490673327,0.1531454,93294.0,93293.0,0.1510959]
[1763490673526,0.04589,93294.0,93293.0,0.1510959]
[1763490674025,0.1531385,93300.0,93299.0,0.1510895]
[1763490674332,0.15533653,93300.0,93299.0,0.1510895]
[1763490674725,0.15533653,93300.0,93299.0,0.04384]
[1763490675131,0.15533653,93300.0,93299.0,0.04484]
[1763490675322,0.15533653,93300.0,93299.0,0.001]
[1763490676625,0.15533653,93300.0,93290.0,0.00016073]
[1763490676626,0.1531488,93291.0,93290.0,0.00016073]
[1763490676825,0.4118288,93291.0,93290.0,0.00016073]
[1763490677420,0.7726288,93291.0,93290.0,0.00016073]
[1763490677830,0.1531534,93287.0,93268.0,0.17644712]
[1763490678032,0.1531534,93287.0,93269.0,0.107283]
[1763490678433,0.1531534,93287.0,93268.0,0.2259846]
[1763490678633,0.1531649,93277.0,93268.0,0.1187]
[1763490678936,0.7726449,93277.0,93271.0,0.1072817]
[1763490679130,0.7726449,93277.0,93276.0,0.02201942]
[1763490679434,0.7726449,93277.0,93276.0,0.05768942]
[1763490680036,0.7726449,93277.0,93276.0,0.04394942]
[1763490680940,0.66537,93277.0,93276.0,0.16499542]
[1763490681133,0.04589,93277.0,93276.0,0.16499542]
[1763490681824,0.4119737,93278.0,93277.0,0.0458]
[1763490682028,0.04602,93277.0,93276.0,0.00010942]
[1763490682940,0.04602,93267.0,93266.0,0.3608]
[1763490683127,0.1533145,93260.0,93259.0,0.00471616]
[1763490683332,0.15551253,93260.0,93259.0,0.00471616]
[1763490683535,0.04821803,93260.0,93259.0,0.02741616]
[1763490683736,0.00219803,93260.0,93259.0,0.05051616]
[1763490684738,0.002302,93260.0,93259.0,0.05051616]
[1763490685440,0.048322,93260.0,93259.0,0.05051616]
[1763490687128,0.002302,93260.0,93259.0,0.05051616]
[1763490687332,0.047612,93260.0,93259.0,0.05051616]
[1763490688448,0.047612,93260.0,93259.0,0.00471616]
[1763490689140,0.1526194,93247.0,93246.0,0.02299811]
[1763490689334,0.1526194,93247.0,93246.0,0.00026811]
[1763490690039,0.1526194,93247.0,93246.0,0.04474811]
[1763490690540,0.1526189,93248.0,93247.0,0.04448]
[1763490690742,0.1526189,93248.0,93246.0,0.00026811]
[1763490690743,0.04531,93247.0,93246.0,0.04474811]
[1763490691045,0.04531,93247.0,93246.0,0.00026811]
[1763490692236,0.04531,93247.0,93246.0,0.04474811]
[1763490692637,0.25872,93248.0,93247.0,0.1517894]
[1763490692838,0.30403,93248.0,93247.0,0.04448]
[1763490694341,0.04531,93248.0,93247.0,0.04448]
[1763490694547,0.00219803,93250.0,93249.0,0.05769]
[1763490695446,0.00010397,93260.0,93255.0,0.1517802]
[1763490695644,0.39915878,93284.0,93273.0,0.04448]
[1763490695645,0.02287,93274.0,93273.0,0.04448]
[1763490695947,0.1301457,93277.0,93276.0,0.05769]
[1763490696139,0.1525857,93277.0,93276.0,0.05769]
[1763490696341,0.1525857,93277.0,93276.0,0.04448]
[1763490697250,0.1525941,93269.0,93268.0,0.40528]
[1763490697950,0.00219803,93270.0,93269.0,0.1517641]
[1763490698736,0.001,93277.0,93276.0,0.151756]
[1763490698939,0.001,93277.0,93276.0,0.512556]
[1763490699238,0.3608,93294.0,93285.0,0.1649557]
[1763490699446,0.1072584,93292.0,93285.0,0.5257557]
[1763490699746,0.1072623,93288.0,93285.0,0.41849]
[1763490700452,0.02303083,93286.0,93285.0,0.41849]
[1763490700748,0.00016083,93286.0,93285.0,0.41849]
[1763490701746,0.00016083,93286.0,93285.0,0.5257557]
[1763490702246,0.02303083,93286.0,93285.0,0.41849]
[1763490703049,0.00016083,93286.0,93285.0,0.41849]
[1763490703944,0.5133561,93302.0,93301.0,0.04448]
[1763490704144,0.43006469,93302.0,93301.0,0.04448]
[1763490704345,0.40611,93302.0,93301.0,0.04448]
[1763490704548,0.3608,93302.0,93301.0,0.04448]
[1763490705550,0.5133561,93302.0,93301.0,0.04448]
[1763490705754,0.04547083,93311.0,93310.0,0.04448]
[1763490706055,0.17665571,93311.0,93310.0,0.04448]
[1763490706444,0.00016083,93311.0,93310.0,0.04448]
[1763490706648,0.00016083,93311.0,93310.0,0.40528]
[1763490707055,0.468021,93324.0,93323.0,0.04448]
[1763490707356,0.3608,93324.0,93323.0,0.151702]
[1763490707943,0.4908909,93324.0,93323.0,0.04448]
[1763490708147,0.5133309,93324.0,93323.0,0.04448]
[1763490708353,0.5143309,93324.0,93323.0,0.04448]
[1763490709559,0.5153309,93324.0,93323.0,0.04448]
[1763490709755,0.02487,93324.0,93323.0,0.04448]
[1763490709952,0.002,93324.0,93323.0,0.04448]
[1763490713659,0.02487,93324.0,93323.0,0.04448]
[1763490713962,0.04731,93324.0,93323.0,0.04448]
[1763490714953,0.04731,93324.0,93323.0,0.151702]
[1763490715346,0.04731,93324.0,93323.0,0.04448]
[1763490716655,0.04531,93315.0,93314.0,0.00016074]
[1763490716864,0.1525412,93315.0,93314.0,0.00016074]
[1763490718454,0.1525412,93315.0,93314.0,0.02289074]
[1763490718648,0.1525412,93315.0,93314.0,0.04510074]
[1763490719063,0.40611,93324.0,93323.0,0.04339]
[1763490719258,0.79583493,93324.0,93323.0,0.02118]
[1763490719962,0.1525412,93315.0,93314.0,0.04355074]
[1763490720152,0.1525412,93315.0,93314.0,0.00016074]
[1763490720355,0.4111812,93315.0,93314.0,0.00016074]
[1763490720763,0.43506306,93315.0,93314.0,0.00016074]
[1763490723658,0.43506306,93315.0,93314.0,0.04355074]
[1763490723859,0.02388186,93315.0,93314.0,0.04355074]
[1763490724056,0.5460509,93324.0,93323.0,0.04339]
[1763490724256,0.56998587,93324.0,93323.0,0.04339]
[1763490724457,0.56998587,93324.0,93323.0,0.02118]
[1763490724758,0.1525412,93315.0,93314.0,0.15078274]
[1763490725468,0.1072285,93318.0,93317.0,0.1506189]
[1763490725760,0.39552,93324.0,93321.0,0.05702]
[1763490725761,0.1525334,93322.0,93321.0,0.05702]
[1763490725951,0.17646884,93322.0,93321.0,0.05702]
[1763490726154,0.17646884,93322.0,93321.0,0.04339]
[1763490726351,0.17646884,93322.0,93321.0,0.02118]
[1763490726566,0.1525334,93322.0,93321.0,0.02118]
[1763490726756,0.1525334,93322.0,93321.0,0.05702]
[1763490727163,0.10748648,93326.0,93325.0,0.04339]
[1763490727462,0.13048648,93326.0,93325.0,0.04339]
[1763490727856,0.15279648,93326.0,93325.0,0.04339]
[1763490728263,0.15379648,93326.0,93325.0,0.04339]
[1763490728856,0.51459648,93326.0,93325.0,0.04339]
[1763490729261,0.53955877,93326.0,93325.0,0.04339]
[1763490729467,0.38703017,93326.0,93325.0,0.04339]
[1763490729669,0.36306788,93326.0,93325.0,0.04339]
[1763490730165,0.38606788,93326.0,93325.0,0.04339]
[1763490730367,0.36306788,93326.0,93325.0,0.04339]
[1763490730570,0.38606788,93326.0,93325.0,0.04339]
[1763490732064,0.40837788,93326.0,93325.0,0.04339]
[1763490732372,0.1525366,93319.0,93318.0,0.04339]
[1763490734563,0.17663982,93319.0,93318.0,0.04339]
[1763490736472,0.17663982,93319.0,93298.0,0.07693371]
[1763490736473,0.1525412,93315.0,93302.0,0.1072461]
[1763490736661,0.53744442,93315.0,93302.0,0.1072461]
[1763490736866,0.53744442,93315.0,93308.0,0.1072383]
[1763490737076,0.53744442,93315.0,93303.0,0.01363]
[1763490737573,0.53744442,93315.0,93307.0,0.1072394]
[1763490737972,0.53744442,93315.0,93303.0,0.01363]
[1763490738977,0.53744442,93315.0,93310.0,0.1072362]
[1763490739475,0.53744442,93315.0,93313.0,0.1072327]
[1763490739669,0.53744442,93315.0,93314.0,0.02134074]
[1763490741177,0.53744442,93315.0,93314.0,0.04355074]
[1763490741577,0.02410322,93315.0,93314.0,0.04355074]
[1763490741778,0.06876322,93315.0,93314.0,0.04355074]
[1763490742472,0.02410322,93315.0,93314.0,0.04355074]
[1763490742677,0.30326,93318.0,93317.0,0.04309]
[1763490742874,0.32737207,93318.0,93317.0,0.04309]
[1763490743572,0.30452207,93318.0,93317.0,0.04309]
[1763490743765,0.32737207,93318.0,93317.0,0.04309]
[1763490743965,0.06877207,93318.0,93317.0,0.04309]
[1763490745078,0.02411207,93318.0,93317.0,0.04309]
[1763490745875,0.1072214,93324.0,93323.0,0.04309]
[1763490746077,0.13133326,93324.0,93323.0,0.04309]
[1763490746271,0.15314326,93324.0,93323.0,0.04309]
[1763490746778,0.04592186,93324.0,93323.0,0.1503097]
[1763490746973,0.06877186,93324.0,93323.0,0.04309]
[1763490747383,0.06977186,93324.0,93323.0,0.04309]
[1763490747683,0.06977186,93324.0,93318.0,0.40504]
[1763490747684,0.1498266,93319.0,93318.0,0.40504]
[1763490750085,0.0426,93319.0,93318.0,0.40504]
[1763490750286,0.00219803,93320.0,93319.0,0.1514666]
[1763490750680,0.40366788,93326.0,93325.0,0.1514597]
[1763490750986,0.06697783,93326.0,93325.0,0.04424]
[1763490752979,0.06797783,93326.0,93325.0,0.04424]
[1763490753384,0.06897783,93326.0,93325.0,0.04424]
[1763490754677,0.02637783,93326.0,93325.0,0.04424]
[1763490754876,0.00226788,93326.0,93325.0,0.04424]
[1763490755182,0.03276,93335.0,93332.0,0.1514517]
[1763490755382,0.03276,93335.0,93332.0,0.5122517]
[1763490755581,0.1072016,93341.0,93332.0,0.5122517]
[1763490755883,0.2586,93344.0,93332.0,0.5122517]
[1763490756385,0.04376074,93333.0,93332.0,0.5122517]
[1763490756688,0.04376074,93333.0,93332.0,0.40504]
[1763490757190,0.00216074,93333.0,93332.0,0.40504]
[1763490759283,7.4e-07,93342.0,93341.0,0.1514413]
[1763490759484,0.0426,93354.0,93353.0,0.1514261]
[1763490759683,0.06668713,93354.0,93353.0,0.1514261]
[1763490759983,0.0426,93345.0,93344.0,0.04424]
[1763490760185,0.02147,93345.0,93344.0,0.04424]
[1763490760784,0.0426,93345.0,93344.0,0.04424]
[1763490762192,0.04479803,93350.0,93349.0,0.04424]
[1763490762393,0.04479803,93350.0,93349.0,0.1514321]
[1763490762897,0.04479803,93350.0,93349.0,0.04424]
[1763490763104,0.0426,93342.0,93341.0,0.5122413]
[1763490764294,0.05634,93348.0,93347.0,0.1514344]
[1763490765184,0.05634,93348.0,93347.0,0.04424]
[1763490766901,0.1498002,93342.0,93341.0,0.3608]
[1763490767590,0.1635471,93336.0,93335.0,0.04440074]
[1763490767793,0.05634,93336.0,93335.0,0.04440074]
[1763490767993,0.0426,93336.0,93335.0,0.04440074]
[1763490768197,0.02366803,93340.0,93339.0,0.04424]
[1763490768391,0.02366803,93340.0,93339.0,0.1514436]
[1763490768585,0.13087053,93340.0,93339.0,0.04424]
[1763490768791,0.1635471,93336.0,93335.0,0.04540074]
[1763490769393,0.02147,93336.0,93335.0,0.04540074]
[1763490769597,0.02147,93336.0,93335.0,0.04440074]
[1763490770197,0.0426,93336.0,93335.0,0.04440074]
[1763490770400,0.0416,93336.0,93335.0,0.04440074]
[1763490770900,0.0416,93336.0,93335.0,0.00016074]
[1763490770901,0.07947582,93336.0,93335.0,0.00016074]
[1763490771091,0.04460582,93336.0,93335.0,0.04540074]
[1763490771291,0.107206,93337.0,93336.0,0.1514471]
[1763490771495,0.0426,93337.0,93336.0,0.1514471]
[1763490772491,0.0426,93337.0,93336.0,0.1524471]
[1763490772999,0.0426,93337.0,93336.0,0.04524]
[1763490773201,0.06675024,93337.0,93336.0,0.04524]
[1763490773892,0.06675024,93337.0,93336.0,0.04624]
[1763490776189,0.06675024,93337.0,93336.0,0.02328]
[1763490776593,0.0426,93337.0,93336.0,0.02328]
[1763490776804,0.0426,93337.0,93336.0,0.002]
[1763490777195,0.4034,93337.0,93336.0,0.002]
[1763490778091,0.4034,93337.0,93336.0,0.04524]
[1763490779802,0.1500771,93336.0,93335.0,0.00016074]
[1763490779998,0.17424203,93336.0,93335.0,0.00016074]
[1763490781100,0.43276203,93336.0,93335.0,0.00216074]
[1763490782210,0.17424203,93336.0,93335.0,0.00216074]
[1763490782506,0.1628255,93320.0,93319.0,0.05775839]
[1763490782701,0.04287,93318.0,93317.0,0.04524]
[1763490783502,0.04287,93318.0,93317.0,0.02328]
[1763490783702,0.04287,93315.0,93314.0,0.38408]
[1763490783901,0.04187,93315.0,93314.0,0.3608]
[1763490784112,0.1501058,93311.0,93310.0,0.04524]
[1763490785196,0.1287158,93311.0,93310.0,0.04524]
[1763490785397,0.1501116,93306.0,93305.0,0.55967442]
[1763490785604,0.1501116,93306.0,93305.0,0.50191603]
[1763490786005,0.1501116,93306.0,93305.0,0.04540074]
[1763490787625,0.00219803,93310.0,93309.0,0.04524]
[1763490787626,0.10943513,93310.0,93309.0,0.04524]
[1763490787809,0.13091513,93310.0,93309.0,0.04524]
[1763490788009,0.15230513,93310.0,93309.0,0.04524]
[1763490789721,0.10943513,93310.0,93309.0,0.04524]
[1763490789918,0.36096074,93324.0,93305.0,0.05791913]
[1763490790225,0.04506803,93320.0,93319.0,0.04524]
[1763490790918,0.16502353,93320.0,93319.0,0.04524]
[1763490793122,0.16502353,93320.0,93319.0,0.02328]
[1763490793317,0.1072358,93311.0,93310.0,0.107236]
[1763490793626,0.1501058,93311.0,93310.0,0.152476]
[1763490793824,0.04287,93311.0,93310.0,0.152476]
[1763490794031,0.02148,93311.0,93310.0,0.152476]
[1763490794519,0.04287,93311.0,93310.0,0.04524]
[1763490796314,0.17048274,93320.0,93319.0,0.04524]
[1763490796515,0.00016074,93324.0,93323.0,0.107222]
[1763490796715,0.00016074,93324.0,93323.0,0.513262]
[1763490797121,0.04287,93340.0,93339.0,0.1524436]
[1763490798317,0.04387,93340.0,93339.0,0.1524436]
[1763490798519,0.02348,93340.0,93339.0,0.1524436]
[1763490798717,0.02348,93340.0,93339.0,0.04524]
[1763490798934,0.04287,93337.0,93336.0,0.3608]
[1763490799231,0.1500828,93331.0,93330.0,0.04540074]
[1763490799526,0.02148,93335.0,93330.0,0.00016074]
[1763490799726,0.02148,93335.0,93334.0,0.5132494]
[1763490799925,0.04287,93335.0,93334.0,0.5132494]
[1763490800324,0.04287,93335.0,93334.0,0.40604]
[1763490800731,0.04387,93335.0,93334.0,0.40604]
[1763490801133,0.04487,93335.0,93334.0,0.40604]
[1763490801429,0.04487,93335.0,93334.0,0.04524]
[1763490808934,0.002,93335.0,93334.0,0.04524]
[1763490812435,0.04649,93335.0,93334.0,0.04524]
[1763490813035,0.002,93335.0,93334.0,0.04524]
[1763490813743,0.04649,93335.0,93334.0,0.04524]
[1763490814640,0.02407,93335.0,93334.0,0.04524]
[1763490814838,0.002,93335.0,93334.0,0.04524]
[1763490815040,0.04649,93335.0,93334.0,0.04524]
[1763490815344,0.02407,93335.0,93334.0,0.04524]
[1763490816246,0.002,93335.0,93334.0,0.04524]
[1763490817241,0.04649,93335.0,93334.0,0.04524]
[1763490817944,0.04649,93335.0,93334.0,0.04545]
[1763490818951,0.04449,93332.0,93331.0,0.1187]
[1763490820339,0.04549,93332.0,93331.0,0.1187]
[1763490820540,0.04649,93332.0,93331.0,0.1187]
[1763490821645,0.1653828,93331.0,93330.0,0.00016074]
[1763490822735,0.1663828,93331.0,93330.0,0.00016074]
[1763490823948,0.19048578,93331.0,93330.0,0.00016074]
[1763490824147,0.19148578,93331.0,93330.0,0.00016074]
[1763490824745,0.04449,93317.0,93316.0,0.0577264]
[1763490824953,0.1517246,93312.0,93311.0,0.02124]
[1763490825343,0.1517281,93309.0,93308.0,0.0577264]
[1763490825538,0.1517281,93309.0,93308.0,0.0789664]
[1763490825743,0.1517281,93309.0,93308.0,0.1011364]
[1763490826344,0.1517281,93309.0,93308.0,0.04341]
[1763490826851,0.04449,93309.0,93308.0,0.04341]
[1763490827243,0.04449,93309.0,93308.0,0.1506492]
[1763490827738,0.00219803,93310.0,93309.0,0.04341]
[1763490827942,0.02426803,93310.0,93309.0,0.04341]
[1763490828647,0.04668803,93310.0,93309.0,0.04341]
[1763490828852,0.02426803,93310.0,93309.0,0.04341]
[1763490829454,0.04668803,93310.0,93309.0,0.04341]
[1763490829846,0.06036803,93310.0,93309.0,0.04341]
[1763490830253,0.04449,93305.0,93304.0,0.1011364]
[1763490830559,0.1517327,93305.0,93304.0,0.1011364]
[1763490830950,0.02207,93307.0,93306.0,0.02217]
[1763490831149,0.02207,93307.0,93306.0,0.04341]
[1763490831549,0.04449,93307.0,93306.0,0.04341]
[1763490832354,0.02207,93307.0,93306.0,0.04341]
[1763490833254,0.04449,93307.0,93306.0,0.04341]
[1763490833755,0.02207,93307.0,93306.0,0.04341]
[1763490835658,0.04449,93307.0,93306.0,0.04341]
[1763490836858,0.04449,93304.0,93303.0,0.07898533]
[1763490837052,0.04449,93304.0,93303.0,0.04341]
[1763490839856,0.04449,93304.0,93303.0,0.02124]
[1763490840659,0.04449,93304.0,93303.0,0.04414]
[1763490841261,0.164595,93303.0,93302.0,0.3608]
[1763490841658,0.164595,93303.0,93302.0,0.40574]
[1763490842768,0.05735,93303.0,93302.0,0.40574]
[1763490842969,0.04351,93310.0,93309.0,0.04494]
[1763490843278,0.04351,93317.0,93316.0,0.15217]
[1763490843469,0.05735,93317.0,93316.0,0.40574]
[1763490844162,0.05735,93317.0,93316.0,0.38284]
[1763490844466,0.05735,93317.0,93316.0,0.3608]
[1763490844772,0.05735,93317.0,93316.0,0.40574]
[1763490844960,0.05735,93317.0,93316.0,0.38284]
[1763490845358,0.00016074,93318.0,93317.0,0.1650089]
[1763490846066,0.03835878,93344.0,93317.0,0.1650089]
[1763490846067,0.04351,93335.0,93334.0,0.1521484]
[1763490847462,0.04351,93335.0,93334.0,0.04494]
[1763490848069,0.04451,93335.0,93334.0,0.04494]
[1763490848465,0.1645662,93328.0,93327.0,0.40574]
[1763490849173,0.1507285,93326.0,93325.0,0.00016074]
[1763490849479,0.1507285,93326.0,93325.0,0.02220074]
[1763490849970,0.1507285,93326.0,93325.0,0.00016074]
[1763490850171,0.17474715,93326.0,93325.0,0.00016074]
[1763490850776,0.17574715,93326.0,93325.0,0.00016074]
[1763490851270,0.1645846,93312.0,93310.0,0.05777831]
[1763490851465,0.1507492,93308.0,93307.0,0.05777831]
[1763490851666,0.1507492,93308.0,93307.0,0.10271831]
[1763490852771,0.1507492,93308.0,93306.0,0.05777831]
[1763490853273,0.04351,93306.0,93305.0,0.07981831]
[1763490853574,0.04351,93306.0,93305.0,0.10271831]
[1763490853779,0.04351,93306.0,93305.0,0.05777831]
[1763490854376,0.04351,93306.0,93305.0,0.10271831]
[1763490855275,0.04351,93306.0,93305.0,0.04494]
[1763490855575,0.40431,93306.0,93305.0,0.04494]
[1763490855875,0.04351,93299.0,93298.0,0.00016074]
[1763490858077,0.04351,93299.0,93298.0,0.02220074]
[1763490858574,0.04351,93299.0,93298.0,0.04510074]
[1763490859077,0.04570803,93300.0,93299.0,0.04494]
[1763490860877,0.00219803,93300.0,93299.0,0.04494]
[1763490862187,0.02546803,93300.0,93299.0,0.04494]
[1763490862365,0.04704803,93300.0,93299.0,0.04494]
[1763490863979,0.02546803,93300.0,93299.0,0.04494]
[1763490864175,0.00219803,93300.0,93299.0,0.04494]
[1763490864571,0.04704803,93300.0,93299.0,0.04494]
[1763490866577,0.1520996,93299.0,93298.0,0.00016074]
[1763490867372,0.1520996,93299.0,93298.0,0.02225074]
[1763490867578,0.1520996,93299.0,93298.0,0.04463074]
[1763490867881,0.1520996,93299.0,93298.0,0.00016074]
[1763490868183,0.1520996,93299.0,93298.0,0.02225074]
[1763490868881,0.1520996,93299.0,93298.0,0.00016074]
[1763490870683,0.1520996,93299.0,93298.0,0.15188144]
[1763490870879,0.00219803,93300.0,93299.0,0.04447]
[1763490871186,0.13128683,93300.0,93299.0,0.04447]
[1763490871377,0.15410683,93300.0,93299.0,0.04447]
[1763490872076,0.02403803,93300.0,93299.0,0.04447]
[1763490872474,0.0585,93312.0,93311.0,0.04447]
[1763490872686,0.1657346,93312.0,93311.0,0.04447]
[1763490873178,0.04466,93312.0,93311.0,0.40527]
[1763490874186,0.1290706,93316.0,93312.0,0.01284]
[1763490874388,0.1290706,93316.0,93315.0,0.04447]
[1763490874586,0.00219803,93320.0,93316.0,0.04447]
[1763490874783,0.01372,93336.0,93316.0,0.04447]
[1763490875289,0.1072157,93329.0,93316.0,0.04447]
[1763490875580,0.01372,93336.0,93335.0,0.04447]
[1763490875581,0.1518671,93336.0,93335.0,0.04447]
[1763490875781,0.1655871,93336.0,93335.0,0.04447]
[1763490875984,0.05838,93336.0,93335.0,0.04447]
[1763490876173,0.04466,93336.0,93335.0,0.04447]
[1763490876379,0.05838,93336.0,93335.0,0.04447]
[1763490876885,0.05938,93336.0,93335.0,0.04447]
[1763490877783,0.06038,93336.0,93335.0,0.04447]
[1763490878286,0.04466,93333.0,93332.0,0.38289]
[1763490878691,0.04466,93333.0,93332.0,0.40527]
[1763490879280,0.04566,93333.0,93332.0,0.40527]
[1763490879481,0.04666,93333.0,93332.0,0.40527]
[1763490879991,0.04666,93333.0,93332.0,0.04447]
[1763490881392,0.04466,93327.0,93326.0,0.04463074]
[1763490882588,0.04666,93327.0,93326.0,0.04463074]
[1763490882789,0.04666,93327.0,93326.0,0.15184934]
[1763490884092,0.04666,93327.0,93326.0,0.04463074]
[1763490885087,0.04666,93327.0,93326.0,0.00016074]
[1763490885293,0.04666,93327.0,93326.0,0.02225074]
[1763490885482,0.04666,93327.0,93326.0,0.04463074]
[1763490888184,0.002,93327.0,93326.0,0.04463074]
[1763490888786,0.1518661,93337.0,93336.0,0.04447]
[1763490888988,0.1518661,93337.0,93336.0,0.1516771]
[1763490889977,0.1528661,93337.0,93336.0,0.1516771]
[1763490891195,0.1538661,93337.0,93336.0,0.1516771]
[1763490891491,0.04666,93337.0,93336.0,0.1516771]
[1763490892993,0.04666,93337.0,93336.0,0.04447]
[1763490896593,0.002,93337.0,93336.0,0.04447]
[1763490898794,0.002,93337.0,93336.0,0.1516771]
[1763490902497,0.1071759,93364.0,93362.0,0.02906]
[1763490902796,0.11487433,93370.0,93362.0,0.02906]
[1763490902797,0.04417,93363.0,93362.0,0.02906]
[1763490902998,0.02217,93363.0,93362.0,0.02906]
[1763490903206,0.05789,93373.0,93372.0,0.02906]
[1763490903391,0.05789,93373.0,93372.0,0.38986]
[1763490904001,0.0576,93380.0,93379.0,0.02944]
[1763490904293,0.05979803,93380.0,93379.0,0.01472]
[1763490904595,0.04417,93377.0,93376.0,0.1366006]
[1763490904897,0.04417,93377.0,93376.0,0.02944]
[1763490905299,0.1513346,93373.0,93372.0,0.39024]
[1763490905796,0.04417,93373.0,93372.0,0.39024]
[1763490906891,0.002,93377.0,93376.0,0.02944]
[1763490907095,0.04717,93377.0,93376.0,0.02944]
[1763490907297,0.001,93377.0,93376.0,0.1366012]
[1763490907497,0.00016066,93382.0,93381.0,0.1365955]
[1763490907692,0.02217,93397.0,93396.0,0.1365782]
[1763490907895,0.02386704,93399.0,93398.0,0.02944]
[1763490908102,0.04443765,93406.0,93405.0,0.1365679]
[1763490908393,0.06830208,93406.0,93405.0,0.4973679]
[1763490908600,0.02413208,93406.0,93405.0,0.4973679]
[1763490908801,0.00026765,93406.0,93405.0,0.4973679]
[1763490909402,0.00010373,93415.0,93414.0,0.1365576]
[1763490909598,0.00010373,93415.0,93414.0,0.4973576]
[1763490909802,0.0576,93429.0,93428.0,0.02944]
[1763490910103,0.08145626,93429.0,93428.0,0.02944]
[1763490911003,0.18855666,93429.0,93428.0,0.02944]
[1763490911305,0.18955666,93429.0,93428.0,0.02944]
[1763490911602,0.19055666,93429.0,93428.0,0.02944]
[1763490911992,0.08345626,93429.0,93428.0,0.02944]
[1763490912193,0.002,93429.0,93428.0,0.02944]
[1763490914304,0.001,93429.0,93428.0,0.02944]
[1763490914506,0.1512674,93432.0,93431.0,0.02944]
[1763490914707,0.04417,93432.0,93431.0,0.1365381]
[1763490915002,0.04443754,93446.0,93445.0,0.02944]
[1763490915202,0.00026754,93446.0,93445.0,0.4973221]
[1763490916609,0.0576,93456.0,93455.0,0.02944]
[1763490916812,0.0576,93465.0,93464.0,0.02944]
[1763490917002,0.0576,93465.0,93464.0,0.4973003]
[1763490917402,0.0576,93474.0,93473.0,0.02944]
[1763490918510,0.15122,93473.0,93472.0,0.3608]
[1763490918805,0.01343,93474.0,93441.0,0.3608]
[1763490918806,0.1512555,93442.0,93441.0,0.3608]
[1763490919002,0.04417,93434.0,93433.0,0.3608]
[1763490919208,0.1512761,93424.0,93423.0,0.02944]
[1763490919396,0.04417,93424.0,93423.0,0.02944]
[1763490921409,0.04417,93424.0,93423.0,0.03044]
[1763490921605,0.02217,93424.0,93423.0,0.03044]
[1763490921805,0.03495,93429.0,93428.0,0.1365416]
[1763490922002,0.05795,93429.0,93428.0,0.1365416]
[1763490922199,0.05795,93429.0,93428.0,0.02944]
[1763490922810,0.05795,93429.0,93428.0,0.1365416]